fUST/lending_fUST_20251121
["ID","MTS","AMOUNT","RATE_DAILY","PERIOD"]
[394528245,1763668621664,179.1,1e-05,2]
[394528246,1763668621986,179.1,1e-05,2]
[394528247,1763668622260,179.1,1.1e-05,2]
[394528248,1763668622551,179.1,1.1e-05,2]
[394528249,1763668622841,179.1,1.1e-05,2]
[394528250,1763668623126,895.51,1e-05,2]
[394528251,1763668623164,-180.08281678,4.503e-05,2]
[394528252,1763668624559,-119.91718322,4.503e-05,2]
[394528253,1763668624581,-128.46324136,4.504e-05,2]
[394528254,1763668626231,-133.48361385,4.504e-05,2]
[394528255,1763668626252,-152.0550624,4.504e-05,2]
[394528256,1763668627194,-878.25960491,4.504e-05,2]
[394528257,1763668627392,-2887.70118527,4.504e-05,2]
[394528258,1763668627420,-10000.01,4.504e-05,2]
[394528259,1763668627455,-10000.01,4.504e-05,2]
[394528260,1763668627566,-10000.01,4.504e-05,2]
[394528261,1763668628422,-152.01051518,4.504e-05,2]
[394528262,1763668633189,-156.63332435,4.504e-05,2]
[394528263,1763668633204,-10000.01,4.504e-05,2]
[394528264,1763668633322,-10000.01,4.504e-05,2]
[394528265,1763668633446,-10000.01,4.504e-05,2]
[394528266,1763668633558,-10000.01,4.504e-05,2]
[394528267,1763668634668,-355.97650933,4.504e-05,2]
[394528268,1763668638259,-325.58444253,4.504e-05,2]
[394528269,1763668641739,-187.88373674,4.504e-05,2]
[394528270,1763668643220,-166.84898511,4.504e-05,2]
[394528271,1763668646970,-297.41554609,4.504e-05,2]
[394528272,1763668650570,631.074278,0.00030137,120]
[394528273,1763668652897,-151.05144922,4.504e-05,2]
[394528274,1763668656689,-185.55938604,4.504e-05,2]
[394528275,1763668658251,-174.41555747,4.504e-05,2]
[394528276,1763668659784,-280.35281112,4.504e-05,2]
[394528277,1763668661720,-215.64959454,4.504e-05,2]
[394528280,1763668806129,180.0,5e-05,120]
[394528281,1763668808528,184.74781062,5e-05,120]
[394528283,1763668871277,-218.628236,0.00028767,60]
[394528284,1763668871300,-985.57972735,0.00029986,24]
[394528285,1763668871323,-143921.88619194,0.0003,30]
[394528286,1763668871347,-248.02512688,0.00032,30]
[394528287,1763668871372,-500.0,0.00032877,120]
[394528288,1763668871397,-248.27721407,0.000332,117]
[394528289,1763668871422,-248.27721404,0.000332,117]
[394528290,1763668871446,-248.27721404,0.000332,117]
[394528291,1763668871469,-502.0,0.000339,120]
[394528292,1763668871496,-523.38,0.000342,30]
[394528293,1763668871518,-95000.0,0.00034247,30]
[394528294,1763668871542,-150.0,0.00034521,30]
[394528295,1763668871566,-199.999999,0.00035,120]
[394528296,1763668871589,-421.36619875,0.00035,60]
[394528297,1763668871612,-3540.65142256,0.00035,120]
[394528298,1763668871634,-1642.89135747,0.00035,120]
[394528299,1763668871658,-319.17957002,0.00035,120]
[394528300,1763668871680,-946.81851555,0.00035,120]
[394528301,1763668871703,-151.0,0.00035,120]
[394528302,1763668871726,-631.074278,0.0003516,120]
[394528303,1763668871749,-500.0,0.00035616,120]
[394528304,1763668871772,-152.0,0.00036247,30]
[394528305,1763668871796,-150.02,0.00036303,60]
[394528306,1763668871820,-150.02,0.00036403,60]
[394528307,1763668871842,-737.87524382,0.000365,120]
[394528308,1763668871869,-150.02,0.00036503,60]
[394528309,1763668871892,-151.0,0.000366,120]
[394528310,1763668871918,-150.02,0.00036603,60]
[394528311,1763668871942,-150.02,0.00036703,60]
[394528312,1763668872060,-25778.36392702,0.00036789,60]
[394528313,1763668872084,-150.02,0.00036803,60]
[394528314,1763668872111,-150.02,0.00036903,60]
[394528315,1763668872138,-200.0,0.00036991,120]
[394528316,1763668872161,-523.38,0.00037,30]
[394528317,1763668872188,-150.02,0.00037003,60]
[394528318,1763668872210,-953.08175957,0.00037031,120]
[394528319,1763668872234,-150.02,0.00037103,60]
[394528320,1763668872256,-788.0,0.0003716,60]
[394528321,1763668872280,-150.02,0.00037203,60]
[394528322,1763668872305,-150.02,0.00037303,60]
[394528323,1763668872330,-150.02,0.00037403,60]
[394528324,1763668872353,-200.0,0.00037479,120]
[394528325,1763668872381,-150.02,0.00037503,60]
[394528326,1763668872406,-500.0,0.00037524,30]
[394528327,1763668872430,-223.51755,0.000376,120]
[394528328,1763668872456,-200.0,0.00037602,120]
[394528329,1763668872483,-150.02,0.00037603,60]
[394528330,1763668872508,-200.0,0.00037644,120]
[394528331,1763668872532,-500.0,0.000377,30]
[394528332,1763668872558,-150.02,0.00037703,60]
[394528333,1763668872583,-150.02,0.00037803,60]
[394528334,1763668872609,-158.0,0.00037808,59]
[394528335,1763668872635,-150.02,0.00037903,60]
[394528336,1763668872667,-200.0,0.00037948,120]
[394528337,1763668872693,-200.0,0.00037961,120]
[394528338,1763668872717,-200.0,0.00037976,120]
[394528339,1763668872739,-10043.26285699,0.00038,60]
[394528340,1763668872763,-4048.82633393,0.00038,30]
[394528341,1763668872787,-150.02,0.00038003,60]
[394528342,1763668872810,-150.02,0.00038103,60]
[394528343,1763668872834,-248.27721404,0.00038109,120]
[394528344,1763668872860,-151.0,0.000382,120]
[394528345,1763668872886,-150.02,0.00038203,60]
[394528346,1763668872913,-150.02,0.00038303,60]
[394528347,1763668872936,-500.0,0.00038356,90]
[394528348,1763668872960,-796.9000349,0.00038356,120]
[394528349,1763668872985,-500.0,0.00038356,30]
[394528350,1763668873009,-500.0,0.00038383,90]
[394528351,1763668873033,-150.02,0.00038403,120]
[394528352,1763668873059,-542.59531575,0.00038411,90]
[394528353,1763668873085,-150.02,0.00038503,120]
[394528354,1763668873113,-150.02,0.00038603,120]
[394528355,1763668873136,-150.0,0.00038623,30]
[394528356,1763668873160,-500.0,0.0003863,30]
[394528357,1763668873186,-200.0,0.00038674,120]
[394528358,1763668873211,-523.38,0.000387,30]
[394528359,1763668873237,-150.02,0.00038703,120]
[394528360,1763668873260,-5000.0,0.00038704,20]
[394528361,1763668873285,-3971.29963489,0.00038704,20]
[394528362,1763668873314,-150.02,0.00038803,120]
[394528363,1763668873342,-200.0,0.00038853,120]
[394528364,1763668873372,-9955.06651276,0.0003888,30]
[394528365,1763668873397,-551.37504592,0.00038897,30]
[394528366,1763668873426,-230.967335,0.000389,50]
[394528367,1763668873451,-150.0,0.000389,120]
[394528368,1763668873475,-150.0,0.000389,120]
[394528369,1763668873498,-40000.00520643,0.000389,30]
[394528370,1763668873523,-150.02,0.00038903,120]
[394528371,1763668873547,-500.0,0.00038904,30]
[394528372,1763668873570,-230.967335,0.00038926,50]
[394528373,1763668873595,-230.967335,0.00038952,50]
[394528374,1763668873625,-230.967335,0.00038978,50]
[394528375,1763668873648,-5334.81613154,0.00039,120]
[394528376,1763668873672,-3002.0,0.00039,120]
[394528377,1763668873697,-227.6857497,0.00039,120]
[394528378,1763668873720,-5385.64379868,0.00039,120]
[394528379,1763668873743,-462.3,0.00039,120]
[394528380,1763668873767,-150.02,0.00039003,120]
[394528381,1763668873790,-230.967335,0.00039004,50]
[394528382,1763668873814,-200.0,0.00039044,120]
[394528383,1763668873838,-5000.0,0.00039096,20]
[394528384,1763668873865,-200.0,0.00039098,120]
[394528385,1763668873889,-150.02,0.00039103,120]
[394528386,1763668873912,-500.0,0.00039178,30]
[394528387,1763668873938,-150.02,0.00039203,120]
[394528388,1763668873962,-6000.0,0.00039208,30]
[394528389,1763668873989,-2854.23426065,0.00039208,30]
[394528390,1763668874015,-150.02,0.00039303,120]
[394528391,1763668874040,-150.02,0.00039403,120]
[394528392,1763668874065,-500.0,0.00039452,30]
[394528393,1763668874088,-293.6491371,0.000395,120]
[394528394,1763668874114,-150.02,0.00039503,120]
[394528395,1763668874137,-500.0,0.00039583,30]
[394528396,1763668874160,-174.69230103,0.000396,120]
[394528397,1763668874184,-210.25496255,0.000396,120]
[394528398,1763668874209,-842.74935831,0.000396,120]
[394528399,1763668874231,-202.84030796,0.000396,120]
[394528400,1763668874253,-198.59570493,0.000396,120]
[394528401,1763668874276,-345.61003187,0.000396,120]
[394528402,1763668874389,-314.64684091,0.000396,120]
[394528403,1763668874414,-1023.54616402,0.000396,120]
[394528404,1763668874438,-382.95109409,0.000396,120]
[394528405,1763668874463,-1360.63127806,0.000396,120]
[394528406,1763668874487,-178.79950481,0.000396,120]
[394528407,1763668874511,-1294.87589573,0.000396,120]
[394528408,1763668874535,-231.46134302,0.000396,120]
[394528409,1763668874558,-178.3910227,0.000396,120]
[394528410,1763668874582,-160.84108898,0.000396,120]
[394528411,1763668874609,-163.21453277,0.000396,120]
[394528412,1763668874633,-160.69467281,0.000396,120]
[394528413,1763668874658,-150.02,0.00039603,120]
[394528414,1763668874683,-200.0,0.00039635,120]
[394528415,1763668874714,-150.02,0.00039703,120]
[394528416,1763668874740,-500.0,0.00039726,30]
[394528417,1763668874764,-104952.86914231,0.000398,30]
[394528418,1763668874787,-151.0,0.000398,120]
[394528419,1763668874813,-150.02,0.00039803,120]
[394528420,1763668874836,-150.0,0.00039871,90]
[394528421,1763668874861,-152.56991262,0.000399,120]
[394528422,1763668874884,-152.56991257,0.000399,120]
[394528423,1763668874908,-152.56991257,0.000399,120]
[394528424,1763668874931,-152.56991257,0.000399,120]
[394528425,1763668874956,-152.56991257,0.000399,120]
[394528426,1763668874983,-152.56991257,0.000399,120]
[394528427,1763668875006,-152.56991257,0.000399,120]
[394528428,1763668875031,-150.02,0.00039903,120]
[394528429,1763668875058,-500.0,0.0004,30]
[394528430,1763668875081,-10137.1394541,0.0004,90]
[394528431,1763668875104,-542.78171747,0.0004,120]
[394528432,1763668875128,-195.82973031,0.0004,120]
[394528433,1763668875150,-250.32878227,0.0004,30]
[394528434,1763668875174,-150.02,0.00040003,120]
[394528435,1763668875198,-150.02,0.00040103,120]
[394528436,1763668875220,-170.5644712,0.00040105,30]
[394528437,1763668875244,-631.074278,0.00040183,120]
[394528438,1763668875269,-150.02,0.00040203,120]
[394528439,1763668875292,-564.5,0.00040274,30]
[394528440,1763668875317,-150.02,0.00040303,120]
[394528441,1763668875339,-523.38,0.000404,30]
[394528442,1763668875363,-150.02,0.00040403,120]
[394528443,1763668875388,-150.02,0.00040503,120]
[394528444,1763668875414,-500.0,0.00040537,30]
[394528445,1763668875438,-500.0,0.00040548,30]
[394528446,1763668875464,-150.02,0.00040603,120]
[394528447,1763668875496,-150.02,0.00040703,120]
[394528448,1763668875525,-174.69230103,0.000408,120]
[394528449,1763668875554,-210.25496255,0.000408,120]
[394528450,1763668875581,-842.74935831,0.000408,120]
[394528451,1763668875607,-202.84030796,0.000408,120]
[394528452,1763668875635,-198.59570493,0.000408,120]
[394528453,1763668875663,-314.64684091,0.000408,120]
[394528454,1763668875697,-345.61003187,0.000408,120]
[394528455,1763668875724,-1023.54616402,0.000408,120]
[394528456,1763668875751,-382.95109409,0.000408,120]
[394528457,1763668875779,-1360.63127806,0.000408,120]
[394528458,1763668875806,-178.79950481,0.000408,120]
[394528459,1763668875834,-1294.87589573,0.000408,120]
[394528460,1763668875861,-231.46134302,0.000408,120]
[394528461,1763668875891,-150.02,0.00040803,120]
[394528462,1763668875918,-500.0,0.00040822,30]
[394528463,1763668875963,-220.84599879,0.00040877,30]
[394528464,1763668875996,-150.02,0.00040903,120]
[394528465,1763668876027,-150.02,0.00041003,120]
[394528466,1763668876058,-220.84599879,0.00041068,30]
[394528467,1763668876089,-201.55,0.00041096,120]
[394528468,1763668876120,-500.0,0.00041096,20]
[394528469,1763668876151,-500.0,0.00041096,31]
[394528470,1763668876184,-500.0,0.00041096,31]
[394528471,1763668876213,-392.76094,0.00041096,31]
[394528472,1763668876240,-150.02,0.00041103,120]
[394528473,1763668876269,-150.02,0.00041203,120]
[394528474,1763668876298,-504.21820142,0.00041283,30]
[394528475,1763668876335,-220.84599879,0.00041288,30]
[394528476,1763668876372,-150.02,0.00041303,120]
[394528477,1763668876400,-500.0,0.0004137,20]
[394528478,1763668876431,-150.02,0.00041403,120]
[394528479,1763668876460,-220.84599879,0.00041479,30]
[394528480,1763668876489,-151.0,0.000415,120]
[394528481,1763668876517,-150.02,0.00041503,120]
[394528482,1763668876543,-500.0,0.00041597,30]
[394528483,1763668876571,-150.02,0.00041603,120]
[394528484,1763668876599,-500.0,0.00041644,20]
[394528485,1763668876629,-220.84599879,0.00041671,30]
[394528486,1763668876656,-150.02,0.00041703,120]
[394528487,1763668876684,-200.0,0.00041747,120]
[394528488,1763668876713,-500.0,0.0004175,30]
[394528489,1763668876740,-200.0,0.00041759,120]
[394528490,1763668876768,-200.0,0.00041797,120]
[394528491,1763668876920,-20083.17296619,0.000418,60]
[394528492,1763668876952,-150.02,0.00041803,120]
[394528493,1763668876981,-220.84599879,0.00041863,30]
[394528494,1763668877008,-150.02,0.00041903,120]
[394528495,1763668877034,-500.0,0.00041918,20]
[394528496,1763668877062,-200.0,0.00041956,120]
[394528497,1763668877086,-174.69230103,0.00042,120]
[394528498,1763668877112,-210.25496255,0.00042,120]
[394528499,1763668877136,-842.74935831,0.00042,120]
[394528500,1763668877158,-202.84030796,0.00042,120]
[394528501,1763668877181,-345.61003187,0.00042,120]
[394528502,1763668877204,-314.64684091,0.00042,120]
[394528503,1763668877226,-1023.54616402,0.00042,120]
[394528504,1763668877249,-382.95109409,0.00042,120]
[394528505,1763668877273,-1360.63127806,0.00042,120]
[394528506,1763668877296,-1294.87589573,0.00042,120]
[394528507,1763668877318,-231.46134302,0.00042,120]
[394528508,1763668877342,-871.25689594,0.00042,120]
[394528509,1763668877369,-150.02,0.00042003,120]
[394528510,1763668877392,-500.73177243,0.00042036,30]
[394528511,1763668877416,-220.84599879,0.00042082,30]
[394528512,1763668877439,-152.56991257,0.00042085,120]
[394528513,1763668877463,-523.38,0.000421,30]
[394528514,1763668877489,-150.02,0.00042103,120]
[394528515,1763668877515,-500.0,0.00042192,20]
[394528516,1763668877540,-150.02,0.00042203,120]
[394528517,1763668877563,-220.84599879,0.00042274,30]
[394528518,1763668877588,-150.02,0.00042303,120]
[394528519,1763668877614,-150.05099722,0.00042403,120]
[394528520,1763668877637,-220.84599879,0.00042466,30]
[394528521,1763668877660,-220.84599879,0.00042658,30]
[394528522,1763668877683,-519.23371644,0.000427,120]
[394528523,1763668877707,-200.0,0.00042712,120]
[394528524,1763668877731,-220.84599879,0.00042849,30]
[394528525,1763668877753,-223.51755,0.000429,120]
[394528526,1763668877776,-2403.2614892,0.0004296,28]
[394528527,1763668877799,-287.40831465,0.00043,120]
[394528528,1763668877821,-506.78,0.00043,120]
[394528529,1763668877844,-220.84599879,0.00043068,30]
[394528530,1763668877867,-151.0,0.000431,120]
[394528531,1763668877889,-174.69230103,0.000433,120]
[394528532,1763668877912,-210.25496255,0.000433,120]
[394528533,1763668877935,-842.74935831,0.000433,120]
[394528534,1763668877957,-202.84030796,0.000433,120]
[394528535,1763668877984,-345.61003187,0.000433,120]
[394528536,1763668878007,-314.64684091,0.000433,120]
[394528537,1763668878032,-1023.54616402,0.000433,120]
[394528538,1763668878061,-382.95109409,0.000433,120]
[394528539,1763668878086,-1360.63127806,0.000433,120]
[394528540,1763668878110,-1294.87589573,0.000433,120]
[394528541,1763668878133,-231.46134302,0.000433,120]
[394528542,1763668878158,-200.0,0.00043397,120]
[394528543,1763668878181,-150.0,0.00043496,90]
[394528544,1763668878204,-200.0,0.00043538,120]
[394528545,1763668878227,-200.0,0.00043757,120]
[394528546,1763668878252,-1000.0,0.000438,90]
[394528547,1763668878277,-200.0,0.00043928,120]
[394528548,1763668878301,-200.0,0.00043935,120]
[394528549,1763668878324,-99999.0,0.00044,120]
[394528550,1763668878347,-369.72,0.00044109,30]
[394528551,1763668878369,-152.56991257,0.00044554,120]
[394528552,1763668878392,-210.25496255,0.000446,120]
[394528553,1763668878415,-842.74935831,0.000446,120]
[394528554,1763668878439,-202.84030796,0.000446,120]
[394528555,1763668878463,-314.64684091,0.000446,120]
[394528556,1763668878487,-345.61003187,0.000446,120]
[394528557,1763668878511,-1023.54616402,0.000446,120]
[394528558,1763668878533,-382.95109409,0.000446,120]
[394528559,1763668878556,-1360.63127806,0.000446,120]
[394528560,1763668878579,-1294.87589573,0.000446,120]
[394528561,1763668878602,-231.46134302,0.000446,120]
[394528562,1763668878624,-259.02125346,0.000447,60]
[394528563,1763668878647,-151.0,0.000447,120]
[394528564,1763668878670,-200.0,0.00044905,120]
[394528565,1763668878693,-1000.0,0.00045,120]
[394528566,1763668878715,-494.27332756,0.00045,120]
[394528567,1763668878737,-200.0,0.00045,120]
[394528568,1763668878759,-503.85274742,0.00045,120]
[394528569,1763668878781,-376.91211631,0.00045,120]
[394528570,1763668878803,-212.24203925,0.00045,90]
[394528571,1763668878826,-646.68546235,0.00045,120]
[394528572,1763668878849,-358.63505904,0.00045,120]
[394528573,1763668878872,-370.10666177,0.00045,120]
[394528574,1763668878896,-200.90803384,0.00045,120]
[394528575,1763668878920,-200.0,0.00045184,120]
[394528576,1763668878942,-19558.39031559,0.000452,30]
[394528577,1763668878969,-631.074278,0.00045205,120]
[394528578,1763668878992,-278030.66510978,0.0004544,30]
[394528579,1763668886525,-259.3384147,0.00041372,30]
[394528580,1763668886553,-738637.17529022,0.0004544,30]
[394528581,1763668886582,-369.72,0.00045479,30]
[394528582,1763668886611,-200.0,0.00045546,120]
[394528583,1763668886640,-200.0,0.00045703,120]
[394528584,1763668886671,-500.0,0.000458,60]
[394528585,1763668886699,-1360.63127806,0.000459,120]
[394528586,1763668886725,-200.0,0.00045926,120]
[394528587,1763668886750,-40278.88446139,0.00046,30]
[394528588,1763668886770,-200.0,0.00046126,120]
[394528589,1763668886793,-151.0,0.000463,120]
[394528590,1763668886816,-500.0,0.00046348,60]
[394528591,1763668886840,-200.0,0.00046415,120]
[394528592,1763668886863,-505.79140796,0.0004644,30]
[394528593,1763668886887,-154.4355753,0.00046518,30]
[394528594,1763668886909,-164.5298397,0.00046518,30]
[394528595,1763668886933,-164.5298397,0.00046518,30]
[394528596,1763668886956,-164.5298397,0.00046518,30]
[394528597,1763668886982,-164.5298397,0.00046518,30]
[394528598,1763668887007,-164.5298397,0.00046518,30]
[394528599,1763668887030,-164.5298397,0.00046518,30]
[394528600,1763668887056,-164.5298397,0.00046518,30]
[394528601,1763668887080,-200.0,0.0004653,120]
[394528602,1763668887104,-507.85771046,0.00046575,120]
[394528603,1763668887127,-27461.0,0.00046575,30]
[394528604,1763668887149,-200.0,0.00046834,120]
[394528605,1763668887172,-369.72,0.00046849,30]
[394528606,1763668887196,-500.0,0.00046896,60]
[394528607,1763668887219,-200.0,0.00046954,120]
[394528608,1763668887242,-1000.0,0.00047,120]
[394528609,1763668887266,-152.56991257,0.00047023,120]
[394528610,1763668887290,-200.0,0.00047124,120]
[394528611,1763668887314,-1360.63127806,0.000473,120]
[394528612,1763668887337,-2000.0,0.000474,43]
[394528613,1763668887362,-180979.53579338,0.0004744,30]
[394528614,1763668890275,-201.36072933,0.000395,120]
[394528615,1763668890299,-561.94302769,0.000395,120]
[394528616,1763668890322,-240.50254393,0.000395,120]
[394528617,1763668890346,-201.36072933,0.000407,120]
[394528618,1763668890370,-561.94302769,0.000407,120]
[394528619,1763668890399,-240.50254393,0.000407,120]
[394528620,1763668890427,-561.94302769,0.000419,120]
[394528621,1763668890453,-561.94302769,0.000432,120]
[394528622,1763668890480,-164.5298397,0.00046518,30]
[394528623,1763668890593,-164.5298397,0.00046518,30]
[394528624,1763668890619,-504884.62810662,0.0004744,30]
[394528625,1763668890649,-491654.8135567,0.00047444,30]
[394528627,1763668893777,-240.50254393,0.000419,120]
[394528628,1763668893803,-240.50254393,0.000432,120]
[394528629,1763668893828,-561.94302769,0.000445,120]
[394528630,1763668893853,-240.50254393,0.000445,120]
[394528631,1763668893879,-164.5298397,0.00046518,30]
[394528632,1763668893908,-388297.1489433,0.00047444,30]
[394528633,1763668893933,-500.0,0.00047444,30]
[394528634,1763668893960,-200.0,0.00047731,120]
[394528635,1763668893987,-151.0,0.000479,120]
[394528636,1763668894012,-200.0,0.00047961,120]
[394528637,1763668894042,-500.0,0.00047992,60]
[394528638,1763668894068,-432.14735777,0.00048,120]
[394528639,1763668894093,-5000.0,0.00048,120]
[394528640,1763668894119,-8899.42555487,0.00048,60]
[394528641,1763668894144,-20000.0,0.00048,60]
[394528642,1763668894167,-223.51755,0.000482,120]
[394528643,1763668894192,-166.9,0.00048219,120]
[394528644,1763668894216,-369.72,0.00048219,30]
[394528645,1763668894241,-200.0,0.0004825,120]
[394528646,1763668894264,-2000.0,0.000484,45]
[394528647,1763668894287,-500.0,0.0004855,120]
[394528648,1763668894311,-200.0,0.00048574,120]
[394528649,1763668894334,-200.0,0.00048575,120]
[394528650,1763668894360,-631.16001754,0.0004877,30]
[394528651,1763668894384,-1000.0,0.000488,120]
[394528652,1763668894408,-1000.0,0.000488,120]
[394528653,1763668894433,-1000.0,0.000488,120]
[394528654,1763668894458,-1000.0,0.000488,120]
[394528655,1763668894482,-1000.0,0.00049,120]
[394528656,1763668894506,-5676.92711282,0.00049,60]
[394528657,1763668894528,-30270.505,0.00049,120]
[394528658,1763668894555,-200.0,0.00049081,120]
[394528659,1763668894578,-500.0,0.00049088,60]
[394528660,1763668894602,-248.27721404,0.00049344,120]
[394528661,1763668894628,-2403.2614892,0.00049386,28]
[394528662,1763668894652,-1008.0,0.000494,48]
[394528663,1763668894676,-524574.02926128,0.0004944,30]
[394528664,1763668898279,-236.27261287,0.00021597,30]
[394528665,1763668898327,-339.40460564,0.000395,120]
[394528666,1763668898364,-24117.3019,0.0004944,30]
[394528667,1763668898389,-975307.02088149,0.00049444,30]
[394528668,1763668901453,-160.330046,0.00037344,50]
[394528669,1763668901485,-339.40460564,0.000407,120]
[394528670,1763668901508,-339.40460564,0.000419,120]
[394528671,1763668901532,-339.40460564,0.000432,120]
[394528672,1763668901555,-339.40460564,0.000445,120]
[394528673,1763668901680,-998482.05153144,0.00049444,30]
[394528674,1763668904227,-284.70274301,0.000395,120]
[394528675,1763668904259,-999715.29725699,0.00049444,30]
[394528676,1763668906872,-1562.28963023,0.000395,120]
[394528677,1763668906899,-1562.28963023,0.000407,120]
[394528678,1763668906931,-896533.85003008,0.00049444,30]
[394528679,1763668906954,-200.0,0.00049486,120]
[394528680,1763668906982,-200.0,0.00049498,120]
[394528681,1763668907006,-151.0,0.000495,120]
[394528682,1763668907033,-200.0,0.00049518,120]
[394528683,1763668907057,-200.0,0.00049528,120]
[394528684,1763668907080,-499.080091,0.00049583,120]
[394528685,1763668907102,-369.72,0.00049589,30]
[394528686,1763668907126,-200.0,0.00049748,120]
[394528687,1763668907149,-508.62303949,0.00049816,30]
[394528688,1763668907172,-200.0,0.00049892,120]
[394528689,1763668907194,-20644.66798074,0.00049987,90]
[394528690,1763668907216,-500.0,0.00049999,120]
[394528691,1763668907239,-622.46114014,0.00049999,120]
[394528692,1763668907262,-468.4746763,0.00049999,120]
[394528693,1763668907285,-367.3263823,0.00049999,120]
[394528694,1763668907309,-1137.07750453,0.00049999,120]
[394528695,1763668907334,-1137.07750453,0.00049999,120]
[394528696,1763668907357,-1137.07750453,0.00049999,120]
[394528697,1763668907381,-1137.07750453,0.00049999,120]
[394528698,1763668907406,-1137.07750453,0.00049999,120]
[394528699,1763668907430,-1137.07750453,0.00049999,120]
[394528700,1763668907454,-1137.07750453,0.00049999,120]
[394528701,1763668907478,-1137.07750453,0.00049999,120]
[394528702,1763668907502,-1137.07750453,0.00049999,120]
[394528703,1763668907526,-1421.34688067,0.00049999,120]
[394528704,1763668907549,-1421.34688067,0.00049999,120]
[394528705,1763668907575,-500.0,0.00049999,120]
[394528706,1763668907599,-481.74393834,0.00049999,120]
[394528707,1763668907623,-500.0,0.00049999,120]
[394528708,1763668907646,-341.49034369,0.00049999,120]
[394528709,1763668907669,-446.83719781,0.00049999,120]
[394528710,1763668907691,-680.98409171,0.0005,120]
[394528711,1763668907713,-222.52286365,0.0005,20]
[394528712,1763668907736,-162.0489271,0.0005,120]
[394528713,1763668907758,-168.69310758,0.0005,120]
[394528714,1763668907780,-158.4239758,0.0005,120]
[394528715,1763668907803,-1002.42239189,0.0005,120]
[394528716,1763668907826,-200.0,0.0005,120]
[394528717,1763668907848,-325.0484407,0.0005,120]
[394528718,1763668907871,-8000.0,0.0005,120]
[394528719,1763668907895,-503.0,0.0005,30]
[394528720,1763668907918,-491.994072,0.0005,30]
[394528721,1763668907941,-1003.56128133,0.0005,120]
[394528722,1763668907963,-5000.0,0.0005,120]
[394528723,1763668907990,-200.0,0.0005,120]
[394528724,1763668908015,-1000.0,0.0005,120]
[394528725,1763668908038,-38486.32853259,0.0005,30]
[394528726,1763668908064,-2058.72693319,0.0005,120]
[394528727,1763668914109,-237.23928813,0.000395,120]
[394528728,1763668914139,-1562.28963023,0.000419,120]
[394528729,1763668914168,-1562.28963023,0.000432,120]
[394528730,1763668914195,-1562.28963023,0.000445,120]
[394528731,1763668914225,-800.0,0.00049364,30]
[394528732,1763668914249,-800.0,0.00049368,30]
[394528733,1763668914273,-800.0,0.00049387,30]
[394528734,1763668914297,-800.0,0.00049397,30]
[394528735,1763668914323,-800.0,0.00049434,30]
[394528736,1763668914348,-800.0,0.00049494,30]
[394528737,1763668914375,-800.0,0.00049528,30]
[394528738,1763668914401,-800.0,0.00049531,30]
[394528739,1763668914428,-800.0,0.00049533,30]
[394528740,1763668914454,-800.0,0.00049538,30]
[394528741,1763668914479,-800.0,0.00049539,30]
[394528742,1763668914505,-800.0,0.00049581,30]
[394528743,1763668914532,-800.0,0.00049599,30]
[394528744,1763668914557,-800.0,0.00049612,30]
[394528745,1763668914582,-800.0,0.00049617,30]
[394528746,1763668914606,-800.0,0.00049671,30]
[394528747,1763668914631,-800.0,0.00049677,30]
[394528748,1763668914659,-800.0,0.00049726,30]